bitfinex-derivatives/quotes_BNBF0:USTF0_20250221
["timestamp","ask_amount","ask_price","bid_price","bid_amount"]
[1740155305285,0.27842691,660.56,658.78,0.24839785]
[1740155305489,0.30278257,660.54,658.78,0.24839785]
[1740155305788,0.27842691,660.53,658.78,0.24839785]
[1740155306586,0.27842691,660.53,659.08,1.07777483]
[1740155306782,0.27842691,660.53,659.09,0.24839785]
[1740155307389,0.27842691,660.53,659.1,0.965]
[1740155308091,0.30279632,660.51,659.1,0.965]
[1740155308586,0.27842469,660.5,659.1,0.965]
[1740155309591,0.30279632,660.51,659.1,0.965]
[1740155311592,0.27846672,660.5,659.1,0.965]
[1740155311893,0.30281007,660.48,659.1,0.965]
[1740155312490,0.27844208,660.47,659.11,0.24857607]
[1740155312692,0.30281007,660.48,659.1,0.965]
[1740155312893,0.30281007,660.48,659.11,0.24857171]
[1740155314192,0.30281007,660.48,659.1,0.965]
[1740155317291,0.30281007,660.48,659.26,1.07777483]
[1740155318193,0.27842347,660.47,659.27,0.24881024]
[1740155319094,0.30281007,660.48,659.27,0.24881024]
[1740155319699,0.30281007,660.48,659.3,1.07777483]
[1740155319899,0.30281007,660.48,659.31,0.24881024]
[1740155322896,0.30281007,660.48,659.69,1.07777483]
[1740155325802,0.30281007,660.48,659.56,1.07777483]
[1740155328406,0.30281007,660.48,659.53,1.07777483]
[1740155329307,0.27839851,660.47,659.53,1.07777483]
[1740155330308,0.30281007,660.48,659.53,1.07777483]
[1740155331109,0.30281007,660.48,659.52,1.07777483]
[1740155333604,0.30281007,660.48,659.41,1.07777483]
[1740155336107,0.30281007,660.48,659.32,1.07777483]
[1740155336309,0.30281007,660.48,659.33,0.24768617]
[1740155337812,0.27836518,660.47,659.33,0.24768617]
[1740155338806,0.30281924,660.46,659.32,1.07777483]
[1740155339012,0.27835591,660.45,659.33,0.2473948]
[1740155339214,0.30282841,660.44,659.78,1.07777483]
[1740155341814,0.30282841,660.44,659.87,1.07777483]
[1740155343914,0.30282841,660.44,659.71,1.07777483]
[1740155347117,0.30282841,660.44,659.69,1.07777483]
[1740155347619,1.42547352,660.43,659.69,1.07777483]
[1740155347814,3.26077111,660.42,659.69,1.07777483]
[1740155348016,3.26099289,660.41,659.69,1.07777483]
[1740155348215,1.42547352,660.4,659.69,1.07777483]
[1740155348410,1.42573573,660.39,659.69,1.07777483]
[1740155348616,2.0015547,660.38,659.69,1.07777483]
[1740155348812,2.98310794,660.37,659.69,1.07777483]
[1740155349014,3.83755448,660.36,659.69,1.07777483]
[1740155349213,2.98330412,660.35,659.69,1.07777483]
[1740155349815,0.85425036,660.34,659.69,1.07777483]
[1740155350112,2.98330412,660.33,659.69,1.07777483]
[1740155350317,2.98330412,660.33,659.7,1.07777483]
[1740155350513,0.85425036,660.32,659.7,1.07777483]
[1740155350712,2.98330412,660.31,659.7,1.07777483]
[1740155350913,0.30289262,660.3,659.7,1.07777483]
[1740155351117,0.27853176,660.29,659.7,1.07777483]
[1740155351312,0.30290179,660.28,659.7,1.07777483]
[1740155351610,0.27853176,660.27,659.7,1.07777483]
[1740155351811,0.30291097,660.26,659.7,1.07777483]
[1740155352017,0.27853176,660.25,659.7,1.07777483]
[1740155352217,0.30292015,660.24,659.7,1.07777483]
[1740155352417,0.27853176,660.23,659.7,1.07777483]
[1740155352620,0.27853176,660.23,659.18,2.24890273]
[1740155352621,0.27853176,660.23,659.19,1.07777483]
[1740155352815,1.13258663,660.23,659.19,1.07777483]
[1740155353015,3.71496645,660.22,659.19,1.07777483]
[1740155353222,3.71496645,660.21,659.19,1.07777483]
[1740155353415,3.71496645,660.2,659.19,1.07777483]
[1740155353615,3.71496645,660.19,659.19,1.07777483]
[1740155353821,3.71496645,660.18,659.19,1.07777483]
[1740155354020,3.43643469,660.17,659.19,1.07777483]
[1740155354320,4.29048956,660.16,659.19,1.07777483]
[1740155354520,3.71506171,660.15,659.19,1.07777483]
[1740155354819,3.71506171,660.14,659.05,1.07777483]
[1740155355018,0.90461204,660.12,659.05,1.07777483]
[1740155355215,3.26022894,660.11,659.05,1.07777483]
[1740155355414,3.71506171,660.1,659.05,1.07777483]
[1740155355619,3.71506171,660.09,659.05,1.07777483]
[1740155355820,3.71506171,660.08,659.05,1.07777483]
[1740155356115,3.71506171,660.07,659.05,1.07777483]
[1740155356319,3.71506171,660.06,659.05,1.07777483]
[1740155356520,3.71506171,660.05,659.05,1.07777483]
[1740155356718,3.71506171,660.04,659.05,1.07777483]
[1740155356916,3.71506171,660.03,659.05,1.07777483]
[1740155357117,3.71506171,660.02,659.05,1.07777483]
[1740155357321,3.71506171,660.01,659.05,1.07777483]
[1740155357522,3.43643469,660.0,659.05,1.07777483]
[1740155357722,3.26027362,659.99,659.05,1.07777483]
[1740155357922,3.26027362,659.98,658.5,1.07777483]
[1740155358122,2.27949654,659.97,658.51,0.249046]
[1740155358319,1.42544167,659.96,658.51,0.249046]
[1740155358622,1.14676997,659.95,658.5,1.07777483]
[1740155358815,1.14676997,659.94,658.5,1.07777483]
[1740155359018,0.30292015,660.24,658.5,1.07777483]
[1740155359220,0.27866188,660.23,658.5,1.07777483]
[1740155359917,1.14071635,660.22,658.5,1.07777483]
[1740155360123,0.73362298,660.21,658.5,1.07777483]
[1740155360316,3.24452439,660.2,658.38,1.07777483]
[1740155360517,3.69948549,660.19,658.38,1.07777483]
[1740155360718,3.42082361,660.18,658.39,0.24939513]
[1740155360919,4.54949549,660.17,658.38,1.07777483]
[1740155361120,3.69948549,660.16,658.39,0.24945316]
[1740155361323,3.69948549,660.15,658.39,0.24945316]
[1740155361623,4.27083361,660.14,658.38,1.07777483]
[1740155361822,3.42082361,660.13,658.38,1.07777483]
[1740155362023,4.27083361,660.12,658.38,1.07777483]
[1740155362217,2.96586251,660.11,658.38,1.07777483]
[1740155362416,2.96586251,660.1,658.38,1.07777483]
[1740155362623,2.96586251,660.09,658.38,1.07777483]
[1740155362822,2.96586251,660.08,658.38,1.07777483]
[1740155363022,0.30300275,660.06,658.38,1.07777483]
[1740155363223,3.26886526,660.06,658.17,1.07777483]
[1740155363421,3.81587251,660.05,658.18,0.55374324]
[1740155363617,0.30301652,660.03,658.19,0.55373862]
[1740155363923,1.14071635,660.02,658.2,0.553734]
[1740155364222,1.14071635,660.01,658.21,0.249875]
[1740155364424,1.14071635,660.0,658.21,0.249875]
[1740155364618,1.14071635,659.99,658.21,0.249875]
[1740155364823,0.30304407,659.97,658.21,0.249875]
[1740155365026,1.14071635,659.96,658.21,0.249875]
[1740155365326,0.30305785,659.94,658.21,0.249875]
[1740155365526,0.85001,659.93,658.21,0.249875]
[1740155365726,0.30307163,659.91,658.22,1.58434473]
[1740155365925,0.30307163,659.91,658.23,0.249875]
[1740155366922,1.13721413,659.9,658.23,0.249875]
[1740155367125,0.3030854,659.88,658.23,0.249875]
[1740155367326,1.13721413,659.87,658.23,0.249875]
[1740155367535,1.13721413,659.86,658.23,0.249875]
[1740155367729,0.30310378,659.84,658.23,0.249875]
[1740155367925,1.13721413,659.83,658.23,0.249875]
[1740155368129,0.30311756,659.81,658.23,0.249875]
[1740155370333,0.30311756,659.81,658.24,0.30384054]
[1740155370534,0.30311756,659.81,658.25,0.24960494]
[1740155372039,0.30311756,659.81,658.26,0.2500715]
[1740155372537,0.30311756,659.81,658.27,0.2500715]
[1740155372734,0.30311756,659.81,658.3,1.07777483]
[1740155372939,0.30311756,659.81,658.31,0.2500715]
[1740155373638,0.30311756,659.81,658.32,0.25035898]
[1740155373839,0.30311756,659.81,658.33,0.25035898]
[1740155374037,0.30311756,659.81,658.31,0.25035898]
[1740155374234,0.30311756,659.81,658.32,0.25035898]
[1740155374431,0.30311756,659.81,658.3,1.07777483]
[1740155374432,0.30311756,659.81,658.33,0.25035898]
[1740155374741,0.30311756,659.81,658.34,0.55415337]
[1740155374934,0.30311756,659.81,658.35,0.55414875]
[1740155375137,0.30311756,659.81,658.36,0.55414414]
[1740155375335,0.30311756,659.81,658.37,0.55413952]
[1740155375538,0.30311756,659.81,658.38,0.55413491]
[1740155375742,0.30311756,659.81,658.39,0.5541303]
[1740155376041,0.30311756,659.81,658.4,0.25035898]
[1740155378244,0.30311756,659.81,658.39,0.30377132]
[1740155378443,0.30311756,659.81,658.4,0.25063079]
[1740155378843,0.30311756,659.81,658.62,1.07777483]
[1740155379645,0.30311756,659.81,658.63,0.25047017]
[1740155380243,0.30311756,659.81,658.62,1.07777483]
[1740155380447,0.27867235,659.8,658.63,0.25037547]
[1740155380849,0.27867235,659.8,658.64,0.25037547]
[1740155381149,0.27867235,659.8,658.65,0.25037547]
[1740155381346,0.27867235,659.8,658.54,0.25037547]
[1740155381647,0.30313134,659.78,658.55,0.25037547]
[1740155381848,0.27867235,659.77,658.54,0.25037547]
[1740155382141,0.27867235,659.77,658.55,0.25037547]
[1740155382349,0.27867235,659.77,658.56,0.25037547]
[1740155382642,0.27867235,659.77,658.57,0.25037547]
[1740155382847,0.30314513,659.75,658.58,0.25037547]
[1740155383044,0.27868398,659.74,658.59,0.25037059]
[1740155383247,0.27868398,659.74,658.53,1.07777483]
[1740155383248,0.27868398,659.74,658.54,0.25037059]
[1740155383448,0.27868398,659.74,658.55,0.25037059]
[1740155383644,0.30315891,659.72,658.56,0.25037059]
[1740155383846,0.27868398,659.71,658.54,0.25037059]
[1740155384051,0.3031727,659.69,658.75,1.07777483]
[1740155386346,0.3031727,659.69,658.9,1.07777483]
[1740155388643,0.3031727,659.69,658.47,1.5840803]
[1740155388644,0.3031727,659.69,658.94,1.07777483]
[1740155390850,0.3031727,659.69,658.48,0.79464193]
[1740155390851,0.3031727,659.69,658.98,1.07777483]
[1740155393355,0.3031727,659.69,658.96,1.07777483]
[1740155396254,0.3031727,659.69,658.73,1.10150337]
[1740155396255,0.3031727,659.69,658.94,1.07777483]
[1740155398151,0.3031727,659.69,658.96,1.07777483]
[1740155400456,0.3031727,659.69,658.97,1.07777483]
[1740155403553,0.278752,659.68,658.97,1.07777483]
[1740155404453,0.3031727,659.69,658.97,1.07777483]
[1740155404857,0.27878758,659.68,658.97,1.07777483]
[1740155405353,0.27878758,659.67,658.97,1.07777483]
[1740155405559,1.42039766,659.66,658.97,1.07777483]
[1740155405858,3.24834783,659.65,658.97,1.07777483]
[1740155406053,4.09990342,659.64,658.97,1.07777483]
[1740155406259,2.97306308,659.63,658.66,1.07777483]
[1740155406459,3.25185066,659.62,658.66,1.07777483]
[1740155406658,2.27382897,659.61,658.66,1.07777483]
[1740155406853,0.27878758,659.6,658.66,1.07777483]
[1740155407359,0.27878758,659.68,658.66,1.07777483]
[1740155407554,1.42141833,659.67,658.66,1.07777483]
[1740155407754,1.14263075,659.66,658.66,1.07777483]
[1740155407954,1.42155368,659.65,658.66,1.07777483]
[1740155408261,1.42155368,659.64,658.2,1.07777483]
[1740155408461,1.42155368,659.63,658.2,1.07777483]
[1740155408662,1.42155368,659.62,658.2,1.07777483]
[1740155408859,1.42155368,659.61,658.2,1.07777483]
[1740155409059,0.27892293,659.6,658.2,1.07777483]
[1740155409361,1.42138898,659.59,658.2,1.07777483]
[1740155409560,0.27893418,659.58,658.2,1.07777483]
[1740155409758,2.10686102,659.68,658.2,1.07777483]
[1740155409963,1.42139225,659.67,658.2,1.07777483]
[1740155410165,3.24938675,659.66,658.2,1.07777483]
[1740155410459,1.42139225,659.65,658.2,1.07777483]
[1740155410663,1.42139225,659.64,658.2,1.07777483]
[1740155410864,1.14245807,659.63,658.2,1.07777483]
[1740155411064,1.14245807,659.62,658.2,1.07777483]
[1740155411266,0.30321406,659.6,658.08,1.07777483]
[1740155411559,0.27893418,659.59,658.08,1.07777483]
[1740155411964,0.30322786,659.57,658.08,1.07777483]
[1740155412162,0.27893418,659.56,658.08,1.07777483]
[1740155412363,0.30324165,659.54,658.09,1.58524086]
[1740155412563,0.27893418,659.53,658.09,1.58524086]
[1740155412760,0.30325544,659.51,658.09,1.58524086]
[1740155412965,0.27893418,659.5,658.09,1.58524086]
[1740155413167,0.27893418,659.5,658.1,1.3306435]
[1740155413466,0.30326924,659.48,658.11,0.2516435]
[1740155413666,0.27893418,659.47,658.11,0.2516435]
[1740155413966,0.30328303,659.45,658.1,1.079]
[1740155414166,0.27887056,659.44,658.11,0.25154585]
[1740155414364,0.30329683,659.42,658.11,0.25154585]
[1740155414766,0.27887056,659.41,658.11,0.25154585]
[1740155414968,0.30329683,659.42,658.1,1.079]
[1740155417363,0.27896337,659.41,658.1,1.079]
[1740155418172,1.14003107,659.4,658.1,1.079]
[1740155418365,0.27896337,659.39,658.1,1.079]
[1740155418567,0.27896337,659.41,658.1,1.079]
[1740155418770,0.30329683,659.42,658.1,1.079]
[1740155418970,0.27901309,659.41,658.1,1.079]
[1740155419171,0.27901309,659.4,658.1,1.079]
[1740155419367,0.27901309,659.39,658.1,1.079]
[1740155419571,0.27901309,659.38,658.1,1.079]
[1740155419766,0.27901309,659.37,658.1,1.079]
[1740155419968,0.27901309,659.41,658.1,1.079]
[1740155420173,0.30331063,659.39,658.1,1.079]
[1740155420376,0.27901309,659.38,658.1,1.079]
[1740155420968,1.41723078,659.37,658.1,1.079]
[1740155421174,3.23884417,659.36,658.1,1.079]
[1740155421369,0.30333363,659.34,658.1,1.079]
[1740155421673,0.27898738,659.33,658.1,1.079]
[1740155421873,3.23728911,659.33,658.1,1.079]
[1740155422072,0.30334743,659.31,658.1,1.079]
[1740155422274,1.41734176,659.3,658.1,1.079]
[1740155422474,0.30336124,659.28,658.1,1.079]
[1740155422673,1.41734176,659.27,658.1,1.079]
[1740155422872,1.41734176,659.26,658.1,1.079]
[1740155423072,1.41734176,659.25,658.1,1.079]
[1740155423270,1.41734176,659.24,658.1,1.079]
[1740155423469,1.41734176,659.23,658.1,1.079]
[1740155423675,1.41734176,659.22,658.1,1.079]
[1740155423869,1.41734176,659.21,658.1,1.079]
[1740155424073,1.41734176,659.2,658.1,1.079]
[1740155424269,1.41734176,659.19,658.1,1.079]
[1740155424469,1.41734176,659.18,658.1,1.079]
[1740155424675,1.41429616,659.17,658.1,1.079]
[1740155424976,0.30336124,659.28,658.1,1.079]
[1740155424977,1.41429616,659.16,658.1,1.079]
[1740155425276,0.30342567,659.14,658.1,1.079]
[1740155425573,0.27909836,659.13,658.1,1.079]
[1740155426775,0.27908965,659.12,658.1,1.079]
[1740155426973,0.27908965,659.13,658.1,1.079]
[1740155427174,0.27908965,659.12,658.1,1.079]
[1740155427375,0.27908965,659.11,658.1,1.079]
[1740155427574,0.27908965,659.1,658.1,1.079]
[1740155427775,0.27908965,659.09,658.1,1.079]
[1740155427971,0.27908965,659.13,658.1,1.079]
[1740155428179,0.27908965,659.12,658.1,1.079]
[1740155428577,0.27908965,659.11,658.1,1.079]
[1740155428773,0.27893785,659.13,658.1,1.079]
[1740155428973,0.30342567,659.14,658.1,1.079]
[1740155429172,0.27893639,659.13,658.1,1.079]
[1740155429377,0.30342567,659.14,658.1,1.079]
[1740155430672,0.27907315,659.13,658.1,1.079]
[1740155431575,0.30343948,659.11,658.1,1.079]
[1740155431977,0.27906848,659.1,658.1,1.079]
[1740155433277,0.27906848,659.1,657.3,1.07777483]
[1740155433582,0.27906848,659.1,657.31,0.55533785]
[1740155433781,0.27906848,659.1,657.32,0.25106742]
[1740155435280,0.974,659.28,657.31,0.30427043]
[1740155435281,0.30345329,659.08,657.57,1.07777483]
[1740155435475,0.2790724,659.07,657.58,0.25136896]
[1740155436182,0.30346711,659.05,657.58,0.25136896]
[1740155436377,0.2790724,659.04,657.58,0.25136896]
[1740155436582,0.2790724,659.04,657.59,1.58631273]
[1740155436781,0.30348092,659.02,657.6,0.25136896]
[1740155436976,0.2790724,659.01,657.6,0.25136896]
[1740155437377,0.30348092,659.02,657.59,1.58631273]
[1740155437684,0.30348092,659.02,657.6,0.25130956]
[1740155437885,0.30348092,659.02,657.61,0.25129993]
[1740155438184,0.30348092,659.02,657.62,0.25129993]
[1740155438383,0.30348092,659.02,657.6,0.25129993]
[1740155438584,0.30348092,659.02,657.61,0.25129993]
[1740155438784,0.30348092,659.02,657.62,0.25129993]
[1740155438983,0.30348092,659.02,657.63,0.25129993]
[1740155439183,0.30348092,659.02,657.64,0.25129993]
[1740155439386,0.30348092,659.02,657.59,1.58631273]
[1740155439583,0.30348092,659.02,657.65,0.25149583]
[1740155439783,0.30348092,659.02,657.66,0.25149583]
[1740155442485,0.2790163,659.01,657.66,0.25149583]
[1740155442786,0.2790163,659.01,657.89,1.07777483]
[1740155445188,0.2790163,659.01,657.93,1.07777483]
[1740155446889,0.2790163,659.0,657.93,1.07777483]
[1740155447083,0.2790163,658.99,657.93,1.07777483]
[1740155447287,0.2790163,659.01,657.93,1.07777483]
[1740155448693,0.2790163,659.01,657.91,1.07777483]
[1740155449187,0.30349474,658.99,657.91,1.07777483]
[1740155449394,0.27909065,658.98,657.91,1.07777483]
[1740155449792,0.30350855,658.96,657.91,1.07777483]
[1740155449986,0.27909065,658.95,657.91,1.07777483]
[1740155450389,0.30352237,658.93,657.91,1.07777483]
[1740155450589,0.27909065,658.92,657.84,1.07777483]
[1740155450988,0.30353619,658.9,657.84,1.07777483]
[1740155451192,0.27909065,658.89,657.84,1.07777483]
[1740155451994,0.30353619,658.9,657.84,1.07777483]
[1740155453806,0.30353619,658.9,657.85,0.25205877]
[1740155454495,0.30353619,658.9,657.84,1.07777483]
[1740155455297,0.30353619,658.9,658.19,1.07777483]
[1740155458301,0.30353619,658.9,657.69,2.90757464]
[1740155458302,0.30353619,658.9,658.26,1.07777483]
[1740155460503,0.30353619,658.9,658.01,1.10150337]
[1740155460504,0.30353619,658.9,658.19,1.07777483]
[1740155463704,0.30353619,658.9,658.39,1.07777483]
[1740155467106,0.30353619,658.9,658.37,1.07777483]
[1740155469507,0.30353619,658.9,658.45,1.07777483]
[1740155469710,0.30353619,658.9,658.46,0.25241223]
[1740155470109,0.45511999,659.71,658.46,0.25241223]
[1740155470310,2.98022156,659.7,658.46,0.25241223]
[1740155470506,2.98022156,659.69,658.46,0.25241223]
[1740155470809,0.30318189,659.67,658.46,0.25241223]
[1740155471009,0.27874571,659.66,658.46,0.25241223]
[1740155471208,1.15653085,659.66,658.46,0.25241223]
[1740155471411,0.87778514,659.66,658.45,1.07777483]
[1740155471611,5.56413766,659.67,658.45,1.07777483]
[1740155471907,3.73166231,659.67,658.45,1.07777483]
[1740155472616,3.73166231,659.67,650.67,14.09223376]
[1740155472617,5.56298209,659.67,658.71,1.07777483]
[1740155473006,3.73166231,659.67,658.71,1.07777483]
[1740155473207,5.56304507,659.67,658.71,1.07777483]
[1740155473411,0.27879109,659.66,658.71,1.07777483]
[1740155473710,0.90184885,659.56,658.71,1.07777483]
[1740155474009,0.30324165,659.54,658.71,1.07777483]
[1740155474410,0.27883299,659.53,658.71,1.07777483]
[1740155474615,0.30325544,659.51,658.71,1.07777483]
[1740155474817,2.30096413,659.5,658.71,1.07777483]
[1740155475115,1.144346,659.49,658.71,1.07777483]
[1740155475312,0.87778514,659.5,658.71,1.07777483]
[1740155475509,0.87778514,659.5,658.54,1.10150337]
[1740155475510,0.87778514,659.5,658.46,1.073]
[1740155475715,1.14368092,659.49,658.46,1.073]
[1740155476016,0.30325544,659.51,658.46,1.073]
[1740155476210,0.30325544,659.51,658.47,0.25253702]
[1740155477721,0.30325544,659.51,658.46,1.073]
[1740155477921,1.1306534,659.5,658.46,1.073]
[1740155478121,3.23913588,659.49,658.46,1.073]
[1740155478422,3.23913588,659.48,658.46,1.073]
[1740155478619,1.40947356,659.47,658.46,1.073]
[1740155478818,1.1306534,659.46,658.46,1.073]
[1740155479017,1.1306534,659.45,658.46,1.073]
[1740155479219,0.85112004,659.45,658.46,1.073]
[1740155480321,0.85112004,659.44,658.46,1.073]
[1740155480625,0.85112004,659.5,658.46,1.073]
[1740155481018,0.30325544,659.51,658.46,1.073]
[1740155481222,0.30325544,659.51,658.47,0.25240983]
[1740155483626,0.30325544,659.51,658.46,1.073]
[1740155483828,0.30325544,659.51,658.47,0.25237915]
[1740155484130,0.30325544,659.51,658.63,1.07777483]
[1740155484323,0.30325544,659.51,658.64,0.25237915]
[1740155486429,0.30325544,659.51,658.63,1.07777483]
[1740155486825,0.30325544,659.51,658.62,1.07777483]
[1740155487629,0.30325544,659.51,658.63,0.25270763]
[1740155489832,0.30325544,659.51,658.62,1.07777483]
[1740155490930,0.30325544,659.51,658.71,1.07777483]
[1740155491934,0.30325544,659.51,658.72,0.25257503]
[1740155493233,0.30325544,659.51,658.64,1.07777483]
[1740155494437,0.30325544,659.51,658.65,0.25209654]
[1740155495230,0.89586808,660.32,658.65,0.25209654]
[1740155495437,0.3030854,659.88,658.65,0.25209654]
[1740155496934,0.3030854,659.88,658.81,1.07777483]
[1740155497135,0.3030854,659.88,658.82,0.25209654]
[1740155497735,0.3030854,659.88,658.81,1.07777483]
[1740155497930,0.3030854,659.88,658.82,0.25182136]
[1740155499939,0.3030854,659.88,658.96,1.07777483]
[1740155502142,0.3030854,659.88,658.81,1.07777483]
[1740155502338,0.3030854,659.88,658.82,0.25159954]
[1740155504641,0.3030854,659.88,658.96,1.07777483]
[1740155505238,0.3030854,659.88,658.97,0.25119992]
[1740155507540,0.3030854,659.88,659.02,1.07777483]
[1740155507745,0.3030854,659.88,659.03,0.25119992]
[1740155508838,0.3030854,659.88,659.04,0.25113974]
[1740155509042,0.3030854,659.88,659.05,0.25113974]
[1740155509237,0.3030854,659.88,659.02,1.07777483]
[1740155509536,0.3030854,659.88,659.03,0.25113151]
[1740155510744,0.3030854,659.88,659.06,1.07777483]
[1740155513544,0.3030854,659.88,659.0,1.07777483]
[1740155514345,0.3030854,659.88,659.01,0.25169189]
[1740155514949,0.3030854,659.88,659.0,1.07777483]
[1740155515947,0.3030854,659.88,659.04,1.07777483]
[1740155516952,0.3030854,659.88,659.05,0.25216251]
[1740155517354,0.3030854,659.88,659.04,1.07777483]
[1740155517549,0.3030854,659.88,659.05,0.25219679]
[1740155518153,0.3030854,659.88,659.06,0.25224775]
[1740155518354,0.3030854,659.88,659.07,0.25224775]
[1740155518655,0.3030854,659.88,659.08,0.25224775]
[1740155518853,0.3030854,659.88,659.05,0.25224775]
[1740155519053,0.3030854,659.88,659.22,1.07777483]
[1740155523156,0.3030854,659.88,658.77,1.58310145]
[1740155523157,0.3030854,659.88,659.23,0.25187347]
[1740155523361,0.3030854,659.88,658.78,0.25191022]
[1740155523559,0.3030854,659.88,658.77,1.58310145]
[1740155524061,0.3030854,659.88,658.78,0.25193087]
[1740155524955,1.065,660.21,658.78,0.25193087]
[1740155525161,1.065,660.21,658.79,0.25193087]
[1740155525454,1.065,660.21,658.8,0.25193087]
[1740155525655,1.065,660.21,658.81,0.25193087]
[1740155525855,1.065,660.21,658.82,0.25193087]
[1740155526056,1.065,660.21,658.83,0.25193087]
[1740155526255,1.065,660.21,658.83,0.948]
[1740155526459,1.065,660.21,659.35,1.07777483]
[1740155526655,1.065,660.21,659.36,0.25193087]
[1740155529261,1.065,660.21,659.52,1.10150337]
[1740155529458,1.065,660.21,659.74,1.07777483]
[1740155529862,0.8945768,661.39,659.74,1.07777483]
[1740155530060,0.30240258,661.37,659.74,1.07777483]
[1740155530364,0.27827002,661.36,659.74,1.07777483]
[1740155530564,0.3024163,661.34,659.74,1.07777483]
[1740155530763,1.4096896,661.33,659.74,1.07777483]
[1740155530959,5.43816861,661.32,659.74,1.07777483]
[1740155531166,0.30243459,661.3,659.74,1.07777483]
[1740155531363,0.27827002,661.29,659.74,1.07777483]
[1740155531561,0.8945768,661.22,659.74,1.07777483]
[1740155531764,0.8945768,661.19,659.74,1.07777483]
[1740155531965,4.11453773,661.18,659.74,1.07777483]
[1740155532162,4.11453773,661.17,659.74,1.07777483]
[1740155532364,0.8945768,661.04,659.74,1.07777483]
[1740155532571,0.8945768,661.02,659.72,1.07777483]
[1740155532768,0.8945768,660.96,659.72,1.07777483]
[1740155532974,4.11453773,660.95,659.72,1.07777483]
[1740155533272,0.8945768,660.92,659.72,1.07777483]
[1740155533571,0.8945768,660.84,659.72,1.07777483]
[1740155533766,3.21996093,660.83,659.72,1.07777483]
[1740155533970,0.8945768,660.74,659.72,1.07777483]
[1740155534172,3.21996093,660.73,659.72,1.07777483]
[1740155534372,0.8945768,660.76,659.72,1.07777483]
[1740155534373,3.21996093,660.72,659.72,1.07777483]
[1740155534568,3.21996093,660.71,659.72,1.07777483]
[1740155534773,2.94169091,660.7,659.72,1.07777483]
[1740155534972,3.2221754,660.69,659.72,1.07777483]
[1740155535172,3.2221754,660.68,659.72,1.07777483]
[1740155535373,1.41068416,660.67,659.72,1.07777483]
[1740155535572,1.41085134,660.66,659.17,1.07777483]
[1740155535771,0.30273674,660.64,659.17,1.07777483]
[1740155535973,0.30273674,660.64,659.18,0.25200489]
[1740155536266,0.30273674,660.64,659.17,1.07777483]
[1740155536472,0.27840514,660.63,659.18,0.25199176]
[1740155537074,0.30275048,660.61,659.18,0.25199176]
[1740155537274,0.27840514,660.6,659.18,0.25199176]
[1740155538774,0.27840514,660.6,659.37,1.07777483]
[1740155539570,0.27843022,660.59,659.37,1.07777483]
[1740155539773,0.27843022,660.6,659.37,1.07777483]
[1740155539975,0.27843022,660.59,659.37,1.07777483]
[1740155540178,0.27843022,660.58,659.37,1.07777483]
[1740155540576,0.27843022,660.57,659.37,1.07777483]
[1740155540773,0.30277798,660.55,659.37,1.07777483]
[1740155540980,0.27843022,660.54,659.37,1.07777483]
[1740155541178,0.27841807,660.53,659.37,1.07777483]
[1740155541376,0.27841807,660.54,659.38,0.25230499]
[1740155541680,0.27841807,660.54,658.95,1.58242958]
[1740155541681,0.27841807,660.53,659.36,1.07777483]
[1740155541874,0.30277798,660.55,659.36,1.07777483]
[1740155542074,0.30277798,660.55,659.37,0.25230114]
[1740155544183,0.30277798,660.55,659.68,1.07777483]
[1740155544385,0.30277798,660.55,659.69,0.25230114]
[1740155544585,0.30277798,660.55,659.68,1.07777483]
[1740155544884,0.30277798,660.55,659.69,0.25200274]
[1740155545083,0.30277798,660.55,659.68,1.07777483]
[1740155547283,0.30277798,660.55,659.74,1.07777483]
[1740155548785,0.30277798,660.55,659.53,1.07777483]
[1740155550888,0.27839214,660.54,659.53,1.07777483]
[1740155551086,0.30279173,660.52,659.53,1.07777483]
[1740155551294,0.27839214,660.51,659.25,1.07777483]
[1740155551496,0.30280549,660.49,659.26,0.25255284]
[1740155551691,0.27839214,660.48,659.26,0.25255284]
[1740155552593,0.30281924,660.46,659.26,0.25255284]
[1740155552795,0.27839214,660.45,659.26,0.25255284]
[1740155553095,0.302833,660.43,659.26,0.25255284]
[1740155553290,0.27839214,660.42,659.26,0.25255284]
[1740155553594,0.30284675,660.4,659.27,0.25267093]
[1740155553795,0.27839837,660.39,659.26,0.25267093]
[1740155553995,0.30286051,660.37,659.27,0.25267093]
[1740155554291,0.30286051,660.37,659.38,1.07777483]
[1740155554497,0.30286051,660.37,659.39,0.25267093]
[1740155554691,0.30286051,660.37,659.38,1.07777483]
[1740155556196,0.30286051,660.37,659.39,0.25267329]
[1740155557892,0.27839069,660.36,659.39,0.25267329]
[1740155558098,0.27839069,660.36,659.34,0.25267329]
[1740155558297,0.27839069,660.36,659.4,0.25267329]
[1740155558498,0.30286969,660.35,659.41,0.25267329]
[1740155558692,0.30286969,660.35,659.34,0.25267329]
[1740155558905,0.30286969,660.35,659.35,0.25267329]
[1740155559106,0.30286969,660.35,659.36,0.25267329]